Cogmind - Beta 16 @@@ ROGUE MODE // 2025.12.17 @ 00:39:05 Player: the Result: Destroyed by B-75 Beast with Heavy Plasma Cannon Performance ------------- Evolutions (3) 1500 Regions Visited (13) 2600 Robots Destroyed (203) 1015 Value Destroyed (4696) 4696 Prototype IDs (55) 1100 Alien Tech Used (0) 0 Bonus (1022) 1022 TOTAL SCORE: 11933 Bonus ------- High Alert Combat Kills 209 Follower Combat Kills 213 Aligned with FarCom 300 Met Data Miner 300 Cogmind --------- Core Integrity 0/700 Matter 78/300 Energy 139/325 System Corruption 2% Temperature Cool (-88) Movement Treading (490) Ox4 Location -6/Proximity Caves Parts ------- > --- POWER (1) -------- Antimatter Reactor > --- PROPULSION (4) --- Armored Treads > --- UTILITY (5) ------ Cryofiber Web Advanced Heat Sink Advanced Heat Sink Advanced Heat Sink High-capacity Storage Unit > --- WEAPON (3) ------- Neutron Cannon Neutron Cannon Neutron Cannon > --- INVENTORY (20) --- Antimatter Reactor Enhanced Flexi-carbon Leg Enhanced Flexi-carbon Leg Advanced Heat Sink Huge Storage Unit Advanced Energy Well (500) Advanced Energy Well (500) Seismic Detector Weapon Cycler Transmission Jammer Layered Medium Armor Plating Layered Medium Armor Plating Layered Medium Armor Plating Layered Medium Armor Plating Recalibrator Cooled Plasma Cannon Neutron Cannon Guided Plasma Cannon Scatter Rocket Array Peak State ------------ > --- POWER ------------ Antimatter Reactor > --- PROPULSION ------- Armored Treads Armored Treads Armored Treads Armored Treads > --- UTILITY ---------- Advanced Heat Sink Advanced Heat Sink High-capacity Storage Unit Improved Signal Interpreter Layered Medium Armor Plating > --- WEAPON ----------- Neutron Cannon Neutron Cannon Neutron Cannon > --- INVENTORY -------- Antimatter Reactor Enhanced Flexi-carbon Leg Enhanced Flexi-carbon Leg Cryofiber Web Advanced Heat Sink Huge Storage Unit Advanced Energy Well Advanced Energy Well Seismic Detector Weapon Cycler Transmission Jammer Layered Medium Armor Plating Layered Medium Armor Plating Layered Medium Armor Plating Recalibrator Cooled Plasma Cannon Neutron Cannon Guided Plasma Cannon Scatter Rocket Array [Rating: 69] Favorites ----------- Power Heavy Ion Engine Engine Heavy Ion Engine Power Core Nuclear Core Reactor Antimatter Reactor Propulsion Light Treads Treads Light Treads Leg Enhanced Flexi-carbon Leg Wheel Armored Wheel Utility Seismic Detector Device Seismic Detector Storage Large Storage Unit Processor Improved Signal Interpreter Hackware Hacking Suite Protection Improved Medium Armor Plating Weapon Precision Beam Rifle Energy Gun Precision Beam Rifle Energy Cannon Neutron Cannon Ballistic Gun Shotgun Ballistic Cannon Light Cannon Launcher Scatter Rocket Array Impact Weapon Power Maul Slashing Weapon Greatsword Build | -11 -10 -10 -9 -9 -9 -8 -8 -8 -7 -7 -7 -7 -6 ------- Run | Yrd Mat Min Mat Min Exi Min Mat Sto Fac Low Low Dat Pro Slots Evolved 6 | . . . 2 . . . 2 . 2 . . . . Power . | . . . . . . . . . . . . . . Propulsion 2 | . . . 1 . . . . . 1 . . . . Utility 3 | . . . . . . . 2 . 1 . . . . Weapon 1 | . . . 1 . . . . . . . . . . Parts Attached 112 | 7 5 3 19 4 5 . 13 10 18 1 9 16 2 Power 12 | 1 1 . 3 . . . 2 . 2 . . 3 . Engine 7 | 1 1 . 3 . . . 1 . 1 . . . . Core 2 | . . . . . . . 1 . 1 . . . . Reactor 3 | . . . . . . . . . . . . 3 . Propulsion 26 | 2 1 1 6 . 3 . . 1 7 . 4 1 . Treads 14 | 2 1 1 6 . . . . . . . 4 . . Leg 1 | . . . . . . . . . . . . 1 . Wheel 11 | . . . . . 3 . . 1 7 . . . . Hover . | . . . . . . . . . . . . . . Flight . | . . . . . . . . . . . . . . Utility 39 | 2 1 1 4 1 1 . 6 2 8 1 2 8 2 Device 22 | 1 . 1 3 . . . 4 2 3 1 1 4 2 Storage 6 | 1 1 . . . 1 . 1 . 1 . . 1 . Processor 3 | . . . . . . . 1 . 2 . . . . Hackware 1 | . . . 1 . . . . . . . . . . Protection 7 | . . . . 1 . . . . 2 . 1 3 . Artifact . | . . . . . . . . . . . . . . Weapon 35 | 2 2 1 6 3 1 . 5 7 1 . 3 4 . Energy Gun 7 | . . . . 3 . . . 3 . . 1 . . Energy Cannon 6 | . . . 1 . . . 1 1 . . . 3 . Ballistic Gun 10 | 2 . . 4 . 1 . 2 1 . . . . . Ballistic Cannon 4 | . 2 1 1 . . . . . . . . . . Launcher 2 | . . . . . . . . 2 . . . . . Special Weapon . | . . . . . . . . . . . . . . Impact Weapon 1 | . . . . . . . 1 . . . . . . Slashing Weapon 5 | . . . . . . . 1 . 1 . 2 1 . Piercing Weapon . | . . . . . . . . . . . . . . Special Melee Weapon . | . . . . . . . . . . . . . . Unidentified Prototypes 9 | . . . 1 . . . . 4 . . . 4 . Parts Lost 18 | . 1 . 1 2 . . 1 . 1 . 3 5 4 Power 2 | . 1 . . . . . . . . . . 1 . Propulsion 3 | . . . . . . . . . . . . . 3 Utility 6 | . . . 1 1 . . . . 1 . . 2 1 Weapon 7 | . . . . 1 . . 1 . . . 3 2 . Highest Loss Streak 3 | . 1 . 1 2 . . 1 . 1 . 3 3 3 To Critical Strikes . | . . . . . . . . . . . . . . Average Backups 16 | 3 7 11 14 13 13 13 18 19 23 22 17 17 19 Power 1 | . 1 1 1 1 3 4 2 1 1 1 . . 1 Propulsion 3 | . 1 2 4 4 2 1 4 5 4 4 2 . 2 Utility 6 | 1 2 3 3 3 3 4 6 9 10 10 9 11 12 Weapon 4 | . 3 4 5 4 3 4 4 3 7 7 5 4 4 Tool/Special . | . . . . . . . . . . . . . . Unused Backups 32 | . 3 . 7 . . . 5 5 2 . 1 2 7 Power 8 | . 2 . 2 . . . 3 . . . 1 . . Propulsion 4 | . . . . . . . 1 1 1 . . . 1 Utility 8 | . . . . . . . . 1 . . . 2 5 Weapon 11 | . 1 . 4 . . . 1 3 1 . . . 1 Tool/Special 1 | . . . 1 . . . . . . . . . . Average Slot Usage (%) 94 | . 96 100 98 100 100 100 92 99 90 83 78 88 98 Engine 6 | . 10 14 11 11 11 11 8 . . . . . . Core 2 | . . . . . . . . 9 6 7 3 . . Treads 18 | . 27 28 32 33 17 . . . . . 14 30 28 Wheel 9 | . . . . . 15 33 26 26 22 15 6 . . Device 12 | . 14 14 9 10 11 11 16 18 11 6 6 6 15 Storage 9 | . 14 14 11 11 11 11 9 9 7 7 7 7 7 Processor 5 | . . . . . . . 3 9 12 15 15 13 6 Protection 1 | . . . . . . . . . 4 7 5 6 6 Energy Gun 9 | . . . . 11 32 33 15 20 22 19 11 . . Energy Cannon 2 | . . . . . . . . . . 3 . 9 22 Ballistic Gun 8 | . 1 . 28 21 . . 10 1 . . . . . Ballistic Cannon 5 | . 26 28 4 . . . . . . . . . . Slashing Weapon 1 | . . . . . . . . . . . 5 6 . Peak Build Rating 69 | 7 8 10 20 19 25 25 39 42 56 60 58 69 69 Average Rating 30 | 4 6 9 16 17 22 25 30 37 49 56 45 54 65 On Entrance 29 | . 7 8 10 17 19 25 25 33 38 56 55 44 69 Avg Prop Armor Cover (%) 7 | . . . . . . . . . . . 7 14 . Naked Turns . | . . . . . . . . . . . . . . Heaviest Build 108 | 13 32 34 38 38 58 58 66 65 103 108 108 93 93 Greatest Support 80 | 40 40 40 60 60 60 36 36 36 56 56 80 80 80 Greatest Overweight (x) 3 | . . . . . 1 1 2 1 3 1 3 1 1 Average Overweight (x) . | . . . . . . 1 1 1 1 1 . . 1 Largest Inventory Capacity 25 | 8 15 15 15 15 20 20 20 20 25 25 25 20 20 Average Capacity 18 | 5 14 15 15 15 16 20 20 20 24 25 23 20 20 Most Carried 25 | 5 10 14 15 15 15 13 20 20 25 25 24 20 20 Average Carried 16 | 3 7 11 14 13 13 13 18 19 23 24 19 18 19 Final Capacity 25 | 8 15 15 15 15 20 20 20 20 25 25 20 20 20 Final Carried 25 | 5 10 13 15 11 13 13 20 20 25 24 14 20 19 Class Distribution -------------------- 26% | Gunner 24% | Mutant 20% | Skirmisher 9% | Scavenger-Gunner 5% | Gladiator 5% | Scavenger-Tank 4% | Commander-Mutant Dominant Class ---------------- Mutant | -10/Materials Mutant | -10/Mines Gunner | -9/Materials Scavenger-Gunner | -9/Mines Gunner | -9/Exiles Gunner | -8/Mines Gunner | -8/Materials Commander-Mutant | -8/Storage Skirmisher | -7/Factory Skirmisher | -7/Lower Caves Skirmisher | -7/Lower Caves Gladiator | -7/Data Miner Scavenger-Tank | -6/Proximity Caves Resources | -11 -10 -10 -9 -9 -9 -8 -8 -8 -7 -7 -7 -7 -6 ----------- Run | Yrd Mat Min Mat Min Exi Min Mat Sto Fac Low Low Dat Pro Matter Collected 3990 | 317 340 211 1320 208 . . 405 249 356 80 114 291 99 Remotely . | . . . . . . . . . . . . . . Salvage Created 6636 | 174 488 223 1830 158 . . 1431 549 1071 53 224 368 67 Parts 412 | 13 44 21 149 13 . . 75 22 39 4 8 18 6 Haulers Intercepted 15 | . 2 . 6 . . . 2 3 2 . . . . Recyclers Shooed 7 | . 1 1 3 . . . . 2 . . . . . Parts Field Recycled . | . . . . . . . . . . . . . . Retrieved Matter . | . . . . . . . . . . . . . . Parts Self-Destructed 17 | . . . . . . . . . . 3 10 . 4 Prevented . | . . . . . . . . . . . . . . Parts Restored 1 | . . . 1 . . . . . . . . . . Broken 1 | . . . 1 . . . . . . . . . . Kills | -11 -10 -10 -9 -9 -9 -8 -8 -8 -7 -7 -7 -7 -6 ------- Run | Yrd Mat Min Mat Min Exi Min Mat Sto Fac Low Low Dat Pro Combat Hostiles Destroyed 133 | . 14 12 40 7 . . 25 4 17 1 6 4 3 Melee 3 | . . . . . . . . . . . . 3 . Guns 84 | . . . 36 7 . . 21 2 15 . 3 . . Cannons 38 | . 12 11 4 . . . 3 2 . 1 3 1 1 AOE 5 | . 2 1 . . . . . . . . . . 2 Classes Destroyed 17 | 2 6 . 4 1 . . 2 . 1 . . . 1 Worker 14 | . 1 . 6 . . . 4 2 1 . . . . Builder 3 | . . . 2 . . . . 1 . . . . . Tunneler 7 | 4 . 1 1 . . . 1 . . . . . . Hauler 15 | . 2 . 6 . . . 2 3 2 . . . . Recycler 13 | 1 1 . 3 . . . 4 1 3 . . . . Mechanic 1 | . . . 1 . . . . . . . . . . Operator 6 | . 1 . 1 . . . 2 1 1 . . . . Drone 2 | . . . . . . . . . . . . . 2 Watcher 11 | . 3 . 4 . . . 2 1 1 . . . . Swarmer 61 | . 6 8 21 4 . . 12 . 7 . 3 . . Grunt 38 | . 8 4 11 2 . . 6 . 4 . 3 . . Duelist 1 | . . . . . . . 1 . . . . . . Protector 1 | . . . 1 . . . . . . . . . . Sentry 20 | . . . 7 . . . 5 4 3 . . . 1 Demolisher 1 | . . . . 1 . . . . . . . . . Hunter 2 | . . . . . . . 1 . . 1 . . . Programmer 3 | . . . . . . . . . 3 . . . . Enhanced Grunt 4 | . . . . . . . . . . . . 4 . Best Kill Streak 10 | 3 5 3 10 4 . . 7 3 4 1 3 1 2 Combat Bots Only 6 | . 4 3 6 4 . . 5 1 4 1 3 1 2 Max Kills in Single Turn 3 | 1 3 1 2 2 . . 2 2 2 1 1 1 1 Gunslinging 1 | . . . 1 1 . . . . 1 . . . . Exploded 2 | . 2 1 . . . . . . . . . . 1 Melee 1 | . . . . . . . . . . . . 1 . Uniques/NPCs Destroyed . | . . . . . . . . . . . . . . Combat | -11 -10 -10 -9 -9 -9 -8 -8 -8 -7 -7 -7 -7 -6 -------- Run | Yrd Mat Min Mat Min Exi Min Mat Sto Fac Low Low Dat Pro Hostile Shots Fired 644 | . 64 40 123 23 . . 73 6 126 . 77 42 70 Missed 217 | . 16 18 40 5 . . 27 4 50 . 23 9 25 Hits 427 | . 48 22 83 18 . . 46 2 76 . 54 33 45 Melee 8 | . . . . . . . . . . . 8 . . Projectile 419 | . 48 22 83 18 . . 46 2 76 . 46 33 45 AOE 9 | . . . . 8 . . . . 1 . . . . Critical Strikes 12 | . 1 1 . . . . 3 . 2 . 2 . 3 Part Disruptions 2 | . . . . . . . . . . . . 2 . Damage Taken 6593 | . 470 252 947 422 . . 607 46 969 . 735 1433 712 Core 1020 | . 96 26 57 31 . . 76 32 141 . 221 136 204 Absorbed by Shields . | . . . . . . . . . . . . . . Regen/Repaired (Parts) 699 | . 120 . 333 . . . 125 46 75 . . . . Core Remaining (%) 77 | 100 . 51 . . . 78 . 80 . . . . . Volleys Fired 363 | 9 42 29 83 12 1 . 69 23 51 6 23 4 11 Largest 3 | 2 2 2 3 3 1 . 3 3 3 1 3 3 3 Hottest 270 | 40 60 67 97 69 23 . 168 183 183 120 183 270 270 Shots Fired 895 | 18 84 58 247 35 1 . 175 47 154 6 30 10 30 Gun 652 | 18 . . 226 35 1 . 160 37 154 . 21 . . Cannon 241 | . 84 58 21 . . . 15 10 . 6 9 10 28 Launcher 2 | . . . . . . . . . . . . . 2 Special . | . . . . . . . . . . . . . . Kinetic 495 | 18 84 58 247 35 1 . 49 3 . . . . . Thermal 398 | . . . . . . . 126 44 154 6 30 10 28 Explosive 2 | . . . . . . . . . . . . . 2 Electromagnetic . | . . . . . . . . . . . . . . Robot Hit Streak 39 | 7 7 6 11 7 . . 10 21 29 . 39 5 14 Robot Miss Streak 9 | 1 5 3 9 3 . . 6 1 2 . 5 . 1 Penetration Max . | . . . . . . . . . . . . . . Secondary Targets 17 | . . . 8 2 . . 3 . 4 . . . . Max Gunslinging Chain 1 | . . . 1 1 . . 1 . 1 . . . . Shots Hit Robots 575 | 14 37 33 161 27 . . 85 31 114 . 19 33 21 Core Hits 291 | 6 22 14 103 16 . . 49 13 41 1 10 12 4 Critical Kills 1 | . . . 1 . . . . . . . . . . Critical Parts Destroyed 2 | . . . 1 . . . . 1 . . . . . Critical Strikes 36 | . . 2 2 . . . 6 3 13 . 2 8 . Burn 23 | . . . . . . . 6 2 13 . 2 . . Destroy 2 | . . . 2 . . . . . . . . . . Blast 2 | . . 2 . . . . . . . . . . . Smash 1 | . . . . . . . . 1 . . . . . Sever 8 | . . . . . . . . . . . . 8 . Melee Attacks 92 | . . . . . . . 10 13 2 . 1 66 . Impact 22 | . . . . . . . 9 13 . . . . . Slashing 70 | . . . . . . . 1 . 2 . 1 66 . Piercing . | . . . . . . . . . . . . . . Sneak Attacks 5 | . . . . . . . 2 2 . . . 1 . Combat Hostiles . | . . . . . . . . . . . . . . Follow-up Attacks 2 | . . . . . . . . . . . . 2 . Damage Inflicted 13706 | 169 1001 695 2650 389 . . 2161 1234 2053 64 611 1694 985 Guns 7254 | 169 . . 2442 381 . . 1417 461 2053 . 331 . . Cannons 3628 | . 716 591 172 . . . 495 360 . 64 280 27 923 Explosions 581 | . 257 95 . . . . . 167 . . . . 62 Melee 2157 | . . . . . . . 249 241 . . . 1667 . Ramming 86 | . 28 9 36 8 . . . 5 . . . . . Kinetic 4923 | 169 716 591 2614 381 . . 436 16 . . . . . Thermal 6311 | . 257 95 . . . . 1476 805 2053 64 611 27 923 Explosive 229 | . . . . . . . . 167 . . . . 62 Electromagnetic . | . . . . . . . . . . . . . . Impact 490 | . . . . . . . 249 241 . . . . . Slashing 1667 | . . . . . . . . . . . . 1667 . Piercing . | . . . . . . . . . . . . . . Highest Corruption 2 | . . . . . . . . . 2 2 2 2 2 Average Corruption 1 | . . . . . . . . . 1 2 2 2 2 Corruption Purged . | . . . . . . . . . . . . . . Corruption Blocked . | . . . . . . . . . . . . . . Effects 48 | . . . . . . . . . 11 4 5 21 7 Message Errors 12 | . . . . . . . . . 3 1 2 4 2 Matter Fused 11 | . . . . . . . . . 3 . 1 5 2 Heat Flow Errors 9 | . . . . . . . . . 1 . . 7 1 Energy Discharges 7 | . . . . . . . . . . 3 2 2 . Parts Rejected 2 | . . . . . . . . . 1 . . . 1 Parts Fused 1 | . . . . . . . . . . . . 1 . Data Loss (minor) 2 | . . . . . . . . . 2 . . . . Data Loss (major) 1 | . . . . . . . . . . . . 1 . Misfires 2 | . . . . . . . . . 1 . . . 1 Alerts 1 | . . . . . . . . . . . . 1 . Overload Shots . | . . . . . . . . . . . . . . Overflow Damage 546 | . 24 36 13 . . . 115 245 . . . 113 . Projectiles 111 | . 9 36 10 . . . 27 29 . . . . . Explosions 15 | . 15 . . . . . . . . . . . . Melee 420 | . . . 3 . . . 88 216 . . . 113 . Knockbacks 21 | . 10 7 2 . . . 1 1 . . . . . Impact 2 | . . . . . . . 1 1 . . . . . Kinetic 17 | . 8 7 2 . . . . . . . . . . Secondary 2 | . 2 . . . . . . . . . . . . Self-Inflicted Damage 2 | . . . . . . . . 2 . . . . . Shots . | . . . . . . . . . . . . . . Rammed 17 | . 5 2 8 1 . . . 1 . . . . . Targets Rammed 17 | . 5 2 8 1 . . . 1 . . . . . Kicked . | . . . . . . . . . . . . . . Crushed . | . . . . . . . . . . . . . . Highest Temperature 516 | . 102 132 85 36 . . 392 226 468 70 350 304 516 Average Temperature 86 | . 41 32 13 10 . . 118 71 136 35 115 114 145 Received Heat Transfer 1343 | . 162 111 270 21 . . 135 9 201 . . . 434 Effects 8 | . . . . . . . 1 . 6 . . . 1 Energy Bleed 4 | . . . . . . . 1 . 3 . . . . Interference 2 | . . . . . . . . . 2 . . . . Matter Decay 1 | . . . . . . . . . . . . . 1 Short Circuit 1 | . . . . . . . . . 1 . . . . Siege Activations . | . . . . . . . . . . . . . . Martial Activations . | . . . . . . . . . . . . . . Shielding Activations . | . . . . . . . . . . . . . . Robots Disrupted . | . . . . . . . . . . . . . . Combat Hostiles . | . . . . . . . . . . . . . . Robots Corrupted 2 | . . . 1 . . . . 1 . . . . . Combat Hostiles . | . . . . . . . . . . . . . . Parts Fried 2 | . . . . . . . . 2 . . . . . Impact Corruptions 12 | . 1 . 2 . . . 2 7 . . . . . Robots Melted 3 | . . . . . . . 1 . 2 . . . . Combat Hostiles 3 | . . . . . . . 1 . 2 . . . . Parts Melted 44 | . . . . . . . 13 4 24 . 3 . . Heat Transferred 12779 | . 150 100 . . . . 3673 1910 5254 160 1532 . . Parts Sabotaged . | . . . . . . . . . . . . . . Parts Stolen 5 | . . . . . . . . . . . 5 . . Parts Stripped . | . . . . . . . . . . . . . . Power Chain Reactions . | . . . . . . . . . . . . . . Alert | -11 -10 -10 -9 -9 -9 -8 -8 -8 -7 -7 -7 -7 -6 ------- Run | Yrd Mat Min Mat Min Exi Min Mat Sto Fac Low Low Dat Pro Maximum Alert Level 2 | . 1 . 2 1 . . 2 2 1 . . . . Low Security (%) 52 | 100 56 100 38 94 . 100 36 33 39 . . . . Level 1 30 | . 43 . 19 5 . . 17 59 60 . . . . Level 2 17 | . . . 42 . . . 46 6 . . . . . Level 3 . | . . . . . . . . . . . . . . Level 4 . | . . . . . . . . . . . . . . Level 5 . | . . . . . . . . . . . . . . High Security . | . . . . . . . . . . . . . . Max Security . | . . . . . . . . . . . . . . Peak Influence 673 | 15 275 148 673 298 . . 581 421 304 . . . . Initial 248 | . . 52 31 248 . . . 222 98 . . . . Average 205 | 2 145 91 304 50 . . 332 221 169 . . . . Influence Increases 4883 | 25 487 356 1167 184 . . 948 776 690 30 190 . 30 Destroy 0b10 Robot/C 2760 | . 280 240 780 140 . . 500 260 400 20 120 . 20 Destroy 0b10 Robot/NC 375 | 25 40 5 125 . . . 75 55 40 . . . 10 Destroy Leader 694 | . 60 50 170 30 . . 128 110 126 10 10 . . Allied During Kill 234 | . . . . 14 . . . 198 22 . . . . Successful Hack 179 | . 25 . 43 . . . 40 33 38 . . . . Disable Machine 195 | . 60 30 . . . . 15 75 15 . . . . Destroy Structure 86 | . 22 16 4 . . . 10 30 4 . . . . Lose Combat Pursuer 360 | . . 15 45 . . . 180 15 45 . 60 . . Influence Decreases 4883 | 25 352 409 611 822 . . 420 1086 699 209 220 . 30 Entered New Map 1034 | . . 83 51 390 . . . 306 120 78 6 . . Time Decay 3099 | 25 342 326 550 202 . . 410 440 469 121 184 . 30 Lost Part 90 | . 10 . 10 20 . . 10 . 10 . 30 . . Lost Ally 210 | . . . . 60 . . . 40 100 10 . . . Purge Threat 450 | . . . . 150 . . . 300 . . . . . Squads Dispatched 27 | . 3 . 5 . . . 3 . 16 . . . . Investigation 9 | . 2 . 1 . . . 1 . 5 . . . . Extermination 4 | . . . . . . . . . 4 . . . . Reinforcement 5 | . 1 . 2 . . . 1 . 1 . . . . Assault 2 | . . . 2 . . . . . . . . . . Garrison 7 | . . . . . . . 1 . 6 . . . . Intercept . | . . . . . . . . . . . . . . Searches Triggered . | . . . . . . . . . . . . . . Construction Impeded . | . . . . . . . . . . . . . . Haulers Reinforced 1 | . . . . . . . . . 1 . . . . Active Scanning Responses . | . . . . . . . . . . . . . . Cargo Convoy Interrupts . | . . . . . . . . . . . . . . Stealth | -11 -10 -10 -9 -9 -9 -8 -8 -8 -7 -7 -7 -7 -6 --------- Run | Yrd Mat Min Mat Min Exi Min Mat Sto Fac Low Low Dat Pro Distress Signals 15 | . . 1 3 . . . 6 4 1 . . . . Communications Jammed 2 | . . . . . . . . . . . . . 2 Distress Signals . | . . . . . . . . . . . . . . Times Spotted 210 | . 19 12 60 8 . 4 46 13 25 1 14 4 4 Peak Tracking Total 9 | . 3 3 6 3 9 6 7 6 5 1 8 2 2 Tactical Retreats 14 | . . 1 3 . . . 6 1 2 . 1 . . Traps | -11 -10 -10 -9 -9 -9 -8 -8 -8 -7 -7 -7 -7 -6 ------- Run | Yrd Mat Min Mat Min Exi Min Mat Sto Fac Low Low Dat Pro Traps Triggered 4 | . 1 . . . . . 1 . 2 . . . . Indirectly . | . . . . . . . . . . . . . . Trap Hack Attempts . | . . . . . . . . . . . . . . Triggered . | . . . . . . . . . . . . . . Disarmed 1 | . . . 1 . . . . . . . . . . Reprogrammed . | . . . . . . . . . . . . . . Reused . | . . . . . . . . . . . . . . Traps Extracted . | . . . . . . . . . . . . . . Installed . | . . . . . . . . . . . . . . Triggered . | . . . . . . . . . . . . . . Objects Rigged 4 | . . . . . . . . 4 . . . . . Exploded 2 | . . . . . . . . 2 . . . . . Machines | -11 -10 -10 -9 -9 -9 -8 -8 -8 -7 -7 -7 -7 -6 ---------- Run | Yrd Mat Min Mat Min Exi Min Mat Sto Fac Low Low Dat Pro Machines Disabled 15 | . 4 2 . . 1 . 1 5 1 . . 1 . Max in Single Turn 2 | . 2 1 . . 1 . 1 1 1 . . 1 . Garrison Access 1 | . . . . . . . . 1 . . . . . Machines Repaired . | . . . . . . . . . . . . . . Machines Dismantled . | . . . . . . . . . . . . . . Machines Sabotaged . | . . . . . . . . . . . . . . Overloaded Fab Kills . | . . . . . . . . . . . . . . Hacking | -11 -10 -10 -9 -9 -9 -8 -8 -8 -7 -7 -7 -7 -6 --------- Run | Yrd Mat Min Mat Min Exi Min Mat Sto Fac Low Low Dat Pro Machines Accessed 58 | . 7 1 11 1 1 . 10 14 10 . . 3 . Terminals 38 | . 6 . 8 1 . . 8 11 4 . . . . Fabricators 3 | . . . . . . . . . 3 . . . . Repair Stations 7 | . 1 . 2 . . . 1 2 1 . . . . Recycling Units 1 | . . . . . . . 1 . . . . . . Scanalyzers 2 | . . . 1 . . . . . 1 . . . . Garrison Access 2 | . . . . . . . . 1 1 . . . . Total Hacks 181 | . 19 1 41 3 1 . 26 43 21 . . 26 . Successful 110 | . 11 1 26 2 1 . 12 25 6 . . 26 . Failed 71 | . 8 . 15 1 . . 14 18 15 . . . . Catastrophic 5 | . 1 . . . . . 3 . 1 . . . . Database Lockouts . | . . . . . . . . . . . . . . Manual 75 | . 12 . 20 2 1 . 15 20 5 . . . . Terminals 112 | . 16 . 27 3 . . 20 36 10 . . . . Fabricators 7 | . . . . . . . . . 7 . . . . Repair Stations 25 | . 3 . 11 . . . 4 6 1 . . . . Recycling Units 2 | . . . . . . . 2 . . . . . . Scanalyzers 5 | . . . 3 . . . . . 2 . . . . Garrison Access 2 | . . . . . . . . 1 1 . . . . Terminal Hacks 69 | . 6 1 8 2 1 . 4 18 3 . . 26 . Record 6 | . . . . . . . . . . . . 6 . Part Schematic 11 | . . . . . . . . . . . . 11 . Robot Schematic 6 | . . . . . . . . . . . . 6 . Robot Analysis 3 | . 1 . . . . . 1 1 . . . . . Prototype ID Bank 13 | . 2 . 3 . . . . 5 . . . 3 . Open Door 4 | . . 1 . . . . . 3 . . . . . Branch Access Points 2 | . 1 . . . . . . . 1 . . . . Terminal Index 3 | . . . 1 . . . 1 . 1 . . . . Fabricator Index 1 | . . . 1 . . . . . . . . . . Alert Level 6 | . . . . 1 . . 2 3 . . . . . Unreport Threat 3 | . . . . 1 . . . 2 . . . . . Locate Traps 4 | . 1 . . . . . . 3 . . . . . Disarm Traps 1 | . . . 1 . . . . . . . . . . Hauler Manifests 3 | . 1 . 1 . . . . 1 . . . . . Registered Components 2 | . . . 1 . . . . . 1 . . . . Proto ID Catalog 1 | . . . . . 1 . . . . . . . . Fabricator Hacks 1 | . . . . . . . . . 1 . . . . Build 1 | . . . . . . . . . 1 . . . . Repair Station Hacks 17 | . 2 . 8 . . . 4 3 . . . . . Scan Component 10 | . 1 . 5 . . . 2 2 . . . . . Repair 7 | . 1 . 3 . . . 2 1 . . . . . Recycling Unit Hacks 1 | . . . . . . . 1 . . . . . . Retrieve Components 1 | . . . . . . . 1 . . . . . . Scanalyzer 2 | . . . 2 . . . . . . . . . . Retrieve Study 2 | . . . 2 . . . . . . . . . . Garrison Access Hacks 1 | . . . . . . . . 1 . . . . . Seal Access 1 | . . . . . . . . 1 . . . . . Unauthorized Hacks 19 | . 3 . 8 . . . 3 3 2 . . . . Terminals 15 | . 2 . 7 . . . 3 3 . . . . . Botnet 9 | . 2 . 2 . . . 3 2 . . . . . Detonate 1 | . . . . . . . . 1 . . . . . Skim 5 | . . . 5 . . . . . . . . . . Fabricators 1 | . . . . . . . . . 1 . . . . Fabnet 1 | . . . . . . . . . 1 . . . . Repair Stations 3 | . 1 . 1 . . . . . 1 . . . . Patch 3 | . 1 . 1 . . . . . 1 . . . . Recycling Units . | . . . . . . . . . . . . . . Scanalyzers . | . . . . . . . . . . . . . . Garrison Access . | . . . . . . . . . . . . . . Data Cores Recovered 4 | . . . 1 . . . . 2 1 . . . . Used 1 | . . . . . . . . . 1 . . . . Hacking Detections 45 | . 7 . 11 1 . . 9 9 8 . . . . Full Trace Events 3 | . . . . . . . . . 3 . . . . Feedback Events . | . . . . . . . . . . . . . . Feedback Blocked . | . . . . . . . . . . . . . . Robot Schematics Acquired 6 | . . . . . . . . . . . . 6 . Robots Built 3 | . . . . . . . . . 3 . . . . Authchips . | . . . . . . . . . . . . . . Time 134 | . . . . . . . . . 134 . . . . Total Robot Build Rating 12 | . . . . . . . . . 12 . . . . Part Schematics Acquired 11 | . . . . . . . . . . . . 11 . Parts Built . | . . . . . . . . . . . . . . Authchips . | . . . . . . . . . . . . . . Time . | . . . . . . . . . . . . . . Total Part Build Rating . | . . . . . . . . . . . . . . Part Studies Acquired 2 | . . . 2 . . . . . . . . . . Parts Repaired 7 | . 1 . 3 . . . 2 1 . . . . . Time 206 | . 26 . 84 . . . 64 32 . . . . . Parts Recycled . | . . . . . . . . . . . . . . Recycled Matter . | . . . . . . . . . . . . . . Retrieved Matter . | . . . . . . . . . . . . . . Retrieved Components 9 | . . . . . . . 9 . . . . . . Parts Scanalyzed . | . . . . . . . . . . . . . . Part Schematics Acquired . | . . . . . . . . . . . . . . Parts Damaged . | . . . . . . . . . . . . . . Bothacking | -11 -10 -10 -9 -9 -9 -8 -8 -8 -7 -7 -7 -7 -6 ------------ Run | Yrd Mat Min Mat Min Exi Min Mat Sto Fac Low Low Dat Pro Used RIF Installer . | . . . . . . . . . . . . . . Robots Hacked . | . . . . . . . . . . . . . . Non-combat . | . . . . . . . . . . . . . . Combat . | . . . . . . . . . . . . . . Robot Hacks Applied . | . . . . . . . . . . . . . . Relay Couplers Released . | . . . . . . . . . . . . . . Fabnet Peak Effective % 3 | . . . . . . . . . . . . . 3 Robots Rewired . | . . . . . . . . . . . . . . Allies Hacked . | . . . . . . . . . . . . . . Hacks Repelled . | . . . . . . . . . . . . . . Allies | -11 -10 -10 -9 -9 -9 -8 -8 -8 -7 -7 -7 -7 -6 -------- Run | Yrd Mat Min Mat Min Exi Min Mat Sto Fac Low Low Dat Pro Total Allies 16 | . . . . 3 . . . 10 3 . . . . Largest Group 10 | . . . . 3 . . . 10 7 . . . . Highest-Rated Group 173 | . . . . 40 . . . 173 124 . . . . Highest-Rated Ally 29 | . . . . 16 . . . 29 29 . . . . Total Orders 5 | . . . . . . . . 2 . 3 . . . STAY 1 | . . . . . . . . 1 . . . . . FOLLOW 2 | . . . . . . . . 1 . 1 . . . EXPLORE 2 | . . . . . . . . . . 2 . . . Ally Attacks 83 | . . . . 4 . . . 57 22 . . . . Total Damage 978 | . . . . 43 . . . 668 267 . . . . Kills 15 | . . . . . . . . 12 3 . . . . Allies Corrupted . | . . . . . . . . . . . . . . Allies Melted . | . . . . . . . . . . . . . . Intel | -11 -10 -10 -9 -9 -9 -8 -8 -8 -7 -7 -7 -7 -6 ------- Run | Yrd Mat Min Mat Min Exi Min Mat Sto Fac Low Low Dat Pro Active Infowar (turns) 9892 | 30 1285 720 1773 796 415 24 1187 1092 1180 258 428 237 467 Sensors 3324 | . . . . . . . 445 1092 864 258 428 237 . Seismic 6554 | 30 1285 720 1773 796 415 24 744 . 316 . . . 451 Jamming 16 | . . . . . . . . . . . . . 16 Robot Analysis Total 3 | . 1 . . . . . 1 1 . . . . . Derelict Logs Recovered 5 | . . 1 . 3 . . . . . 1 . . . Drone Launches 2 | . . . . . . . . . . 2 . . . Drone Recoveries 1 | . . . . . . . . . . 1 . . . Exploration | -11 -10 -10 -9 -9 -9 -8 -8 -8 -7 -7 -7 -7 -6 ------------- Run | Yrd Mat Min Mat Min Exi Min Mat Sto Fac Low Low Dat Pro Turns Passed 11716 | 179 1285 720 2095 814 415 24 1187 1092 1309 318 593 1188 497 Spaces Moved 6468 | 86 662 370 943 408 331 24 779 775 989 207 293 432 169 Core 2 | 2 . . . . . . . . . . . . . Treads 3290 | 84 662 370 943 408 129 . . . . . 93 432 169 Legs . | . . . . . . . . . . . . . . Wheels 3176 | . . . . . 202 24 779 775 989 207 200 . . Hover . | . . . . . . . . . . . . . . Flight . | . . . . . . . . . . . . . . Fastest Speed 50 | 50 160 160 160 160 95 95 95 95 95 115 115 170 250 Average Speed 136 | 157 160 160 160 160 120 95 95 95 105 115 134 200 250 Slowest Speed 250 | 160 160 160 160 160 160 95 110 95 145 115 250 250 250 Overloaded Moves . | . . . . . . . . . . . . . . Propulsion Burnouts . | . . . . . . . . . . . . . . Robots Hopped . | . . . . . . . . . . . . . . Potential Cave-ins . | . . . . . . . . . . . . . . Cave-ins Triggered . | . . . . . . . . . . . . . . Exploration Rate (%) 60 | 4 94 67 78 80 69 9 75 93 34 88 41 81 34 Regions Visited 13 Branch Regions 9 Pre-discovered Areas 5 | . . . 2 2 . . . . . . . 1 . Known Exits Taken 8 | . 1 . . . . 1 1 1 1 1 1 1 . Unknown Exits Taken 5 | 1 . 1 1 1 1 . . . . . . . . Scrap Searched 10 | . . 1 . 1 . . . . . 6 1 . 1 Spaces Dug 21 | . . . 2 . . . 5 5 1 2 1 5 . Terrain Destroyed 208 | . 19 16 3 . . . 5 32 1 4 2 8 118 Melee 12 | . . . . . . . 5 5 1 . 1 . . Projectile 25 | . . 5 3 . . . . . . 4 1 8 4 AOE 171 | . 19 11 . . . . . 27 . . . . 114 Terrain Rammed . | . . . . . . . . . . . . . . Walls Destroyed . | . . . . . . . . . . . . . . Machines Disabled . | . . . . . . . . . . . . . . Actions | -11 -10 -10 -9 -9 -9 -8 -8 -8 -7 -7 -7 -7 -6 --------- Run | Yrd Mat Min Mat Min Exi Min Mat Sto Fac Low Low Dat Pro Total 8484 | 111 800 438 1352 542 347 24 1074 1064 1136 278 462 645 211 Wait 1132 | . 74 31 239 115 2 . 164 213 22 57 121 73 21 Move 6455 | 85 661 369 942 407 330 23 778 774 988 206 292 431 169 Hop . | . . . . . . . . . . . . . . Pick Up 112 | 9 8 2 22 . 5 . 16 8 16 . 4 22 . Fast Attach 35 | 4 2 . 6 . . . 4 2 8 . . 7 2 Attach 43 | 3 . . 4 4 3 . 4 1 6 1 10 6 1 Detach 9 | . . . 4 . . . 1 . 1 . 2 1 . Swap 121 | . 4 3 17 1 2 1 16 17 20 7 4 22 7 Drop 109 | 1 4 2 27 2 4 . 12 12 22 1 5 17 . Fire 363 | 9 42 29 83 12 1 . 69 23 51 6 23 4 11 Melee 88 | . . . . . . . 10 13 2 . 1 62 . Ram 1 | . . . . . . . . 1 . . . . . Kick . | . . . . . . . . . . . . . . Crush 16 | . 5 2 8 1 . . . . . . . . . Escape Stasis . | . . . . . . . . . . . . . . Rewire . | . . . . . . . . . . . . . . Trap . | . . . . . . . . . . . . . . Miscellaneous . | . . . . . . . . . . . . . . Route ------- -11/Scrapyard -10/Materials (discovered 4 exits: *Mat x3 / *Min) -10/Mines (discovered 2 exits: *Mat x2) -9/Materials (discovered 3 exits: *Mat x2 / *Min) -9/Mines (discovered 3 exits: *Mat x2 / *Exi) -9/Exiles -8/Mines -8/Materials (discovered 4 exits: *Fac x2 / *Sto x2) -8/Storage -7/Factory (discovered 2 exits: *Low x2) -7/Lower Caves -7/Lower Caves -7/Data Miner -6/Proximity Caves History --------- Turn | Location | Event 14 | -11/Scrapyard | Discovered new exit (range 15) 180 | -11/Scrapyard | Entered Materials 322 | -10/Materials | Build established: Mutant 398 | -10/Materials | Discovered new exit (range 13) 401 | -10/Materials | Identified exit to Mines 852 | -10/Materials | Discovered new exit (range 5) 919 | -10/Materials | Discovered new exit (range 16) 994 | -10/Materials | Discovered new exit (range 8) 1431 | -10/Materials | Repaired Lgt. Treads 1465 | -10/Materials | Entered Mines 1522 | -10/Mines | Learned location of 1 exit from Materials 1589 | -10/Mines | Met a Derelict who couldn't figure out how to use a Trap Extractor 1878 | -10/Mines | Discovered new exit (range 8) 1905 | -10/Mines | Discovered new exit (range 7) 2185 | -10/Mines | Entered Materials 2185 | -9/Materials | Evolved 2 slots: Propulsion x1, Weapon x1 2186 | -9/Materials | Identified exit to Materials 2479 | -9/Materials | Discovered new exit (range 10) 2480 | -9/Materials | Build established: Gunner 2620 | -9/Materials | Discovered exit to Materials (range 5) 2754 | -9/Materials | Repaired Lgt. Treads 2781 | -9/Materials | Repaired Lgt. Treads 3555 | -9/Materials | Learned location of Zion (-6) 3617 | -9/Materials | Learned Materials security intel 3620 | -9/Materials | Learned Storage security intel 3656 | -9/Materials | Learned Storage security intel 3785 | -9/Materials | First assault squad dispatched 4024 | -9/Materials | Repaired Shotgun+ 4280 | -9/Materials | Entered Mines 4291 | -9/Mines | Met a Derelict bent on vengeance 4356 | -9/Mines | Learned Materials terminal intel 4393 | -9/Mines | Assisted by bots powering up and referring to "LRC-V3" 4458 | -9/Mines | Discovered exit to Materials (range 14) 4475 | -9/Mines | Build established: Scavenger-Gunner 4505 | -9/Mines | Found a Scrap Suit stashed away for nefarious purposes 4521 | -9/Mines | Discovered exit to Materials (range 8) 4626 | -9/Mines | Assembled infested the area 4682 | -9/Mines | Lost 4 allies 5086 | -9/Mines | Discovered new exit (range 5) 5094 | -9/Mines | Entered Exiles 5141 | -9/Exiles | Met 8R-AWN 5163 | -9/Exiles | Met EX-HEX 5221 | -9/Exiles | Met EX-BIN 5240 | -9/Exiles | Aligned with FarCom system 5241 | -9/Exiles | Given EX-Vault access code 5280 | -9/Exiles | Opened EX-Vault 5297 | -9/Exiles | Found Gui. Plasma Cannon 5310 | -9/Exiles | Found Supersonic Drone Bay 5330 | -9/Exiles | Warned to stay clear of 0b10 Research branches 5358 | -9/Exiles | Met EX-DEC 5487 | -9/Exiles | Attacked by the Exiles 5501 | -9/Exiles | Discovered new exit (range 10) 5509 | -9/Exiles | Stole two prototypes: Supersonic Drone Bay, Gui. Plasma Cannon 5509 | -9/Exiles | Entered Mines 5529 | -8/Mines | Discovered exit to Materials (range 5) 5533 | -8/Mines | Entered Materials 5533 | -8/Materials | Evolved 2 slots: Utility x2 5534 | -8/Materials | Identified exit to Storage 5536 | -8/Materials | Loaded intel: 12 terminal locations 5606 | -8/Materials | Build established: Gunner 6099 | -8/Materials | Discovered new exit (range 13) 6312 | -8/Materials | Garrison activated, responded to threat 6439 | -8/Materials | Discovered new exit (range 9) 6558 | -8/Materials | Build established: Skirmisher 6633 | -8/Materials | Repaired Arm. Wheel+ 6666 | -8/Materials | Repaired Arm. Wheel+ 6715 | -8/Materials | Discovered exit to Storage (range 5) 6720 | -8/Materials | Entered Storage 7039 | -8/Storage | Assisted by bots powering up and referring to "LRC-V3" 7064 | -8/Storage | Found Prototype Launcher 7064 | -8/Storage | Identified Scatter Rocket Array 7354 | -8/Storage | Build established: Commander-Mutant 7402 | -8/Storage | Discovered new exit (range 9) 7518 | -8/Storage | Repaired Arm. Wheel+ 7809 | -8/Storage | Identified exit to Factory 7812 | -8/Storage | Entered Factory 7812 | -7/Factory | Accompanied by 7 allies 7812 | -7/Factory | Evolved 2 slots: Propulsion x1, Utility x1 7835 | -7/Factory | Build established: Commander-Skirmisher 7892 | -7/Factory | Lost 5 allies 8166 | -7/Factory | Build established: Skirmisher 8308 | -7/Factory | Garrison activated, responded to threat 8427 | -7/Factory | Identified exit to Lower Caves 8784 | -7/Factory | Fabricated B-48 Gladiator? 8864 | -7/Factory | Garrison activated, responded to threat 9121 | -7/Factory | Entered Lower Caves 9122 | -7/Lower Caves | Encountered a Warlord checkpoint 9160 | -7/Lower Caves | Discovered new exit (range 108) 9257 | -7/Lower Caves | Learned Factory emergency access door positions 9435 | -7/Lower Caves | Identified exit to Lower Caves 9439 | -7/Lower Caves | Entered another Lower Caves area 9546 | -7/Lower Caves | Encountered a Warlord checkpoint 9699 | -7/Lower Caves | Discovered new exit (range 16) 9704 | -7/Lower Caves | Encountered a Master Thief 9704 | -7/Lower Caves | Encountered a Master Thief 9704 | -7/Lower Caves | Encountered a Master Thief 9704 | -7/Lower Caves | Encountered a Master Thief 9704 | -7/Lower Caves | Encountered a Master Thief 9707 | -7/Lower Caves | Imp. Medium Armor Plating stolen by Master Thief 9708 | -7/Lower Caves | Arm. Huge Wheel stolen by Master Thief 9709 | -7/Lower Caves | Arm. Huge Wheel stolen by Master Thief 9710 | -7/Lower Caves | Mic. Nuclear Core stolen by Master Thief 9711 | -7/Lower Caves | Mic. Nuclear Core stolen by Master Thief 9748 | -7/Lower Caves | Core integrity fell below 50% 9758 | -7/Lower Caves | Lost 3 parts (3w) 9955 | -7/Lower Caves | Identified exit to Data Miner 10032 | -7/Lower Caves | Entered Data Miner 10032 | -7/Data Miner | Discovered new exit (range 6) 10065 | -7/Data Miner | Met Data Miner 10106 | -7/Data Miner | Learned location of Section 7 (-2) 10106 | -7/Data Miner | Acquired the access code to Warlord's prototype stash 10123 | -7/Data Miner | Received God Mode back door access code from Data Miner 10149 | -7/Data Miner | Data Conduit disabled 10278 | -7/Data Miner | Found Prototype Device 10278 | -7/Data Miner | Identified Exp. Thermal Shield 10337 | -7/Data Miner | Build established: Gladiator 10638 | -7/Data Miner | Lost 3 parts (2u1w) 10979 | -7/Data Miner | Identified exit to Proximity Caves 11220 | -7/Data Miner | Entered Proximity Caves 11411 | -6/Proximity Caves | Build established: Scavenger-Tank 11501 | -6/Proximity Caves | Attracted the attention of an 0b10 checkpoint 11666 | -6/Proximity Caves | Spotted B-75 Beast 11699 | -6/Proximity Caves | Core integrity fell below 20% 11717 | -6/Proximity Caves | Destroyed by B-75 Beast with Heavy Plasma Cannon Last Messages --------------- 11529_ Lgt. Treads fries itself beyond repair. 11529_ Imp. Heat Sink fries itself beyond repair. 11556_ Searching scrap... 11556_ Found Bore Cannon. 11556_ Found 34 Matter. 11557_ Acquired 34 matter. 11666_ Arm. Treads blasted off. 11668_ System corrupted: Heat flow error (+287). 11668_ Acquired Arm. Treads. 11669_ Arm. Treads destroyed. 11670_ Acquired 5 matter. 11701_ FP D XUOQT5M7EAQ0>IYXIV0WJSGCW 11701_ Arm. Treads destroyed. 11704_ Critical hit (Meltdown: +320). 11705_ Overheating: Matter decay (-25). 11707_ Arm. Treads destroyed. 11707_ Imp. Signal Interpreter destroyed. 11707_ Critical hit (Blast). 11712_ Destroyed Med. Reflective Plating. Map ----- +----------------------------------------------------+ | ??####???????????????????????????????????????????? | | ## ???????????????????????????????????????????? | | ????????????????????????????????????????????? | | ?????????????????????????????????????????????? | | ??????????????????????????????????????????????? | | ????????????????????????????????????????????????? | | ?????????????????????????????????????????????????? | | ?????????????????????????????????????????????????? | | ?????????????????????????????????????????????????? | | ###??????????????????? ???????????????????????? | | ##?????????????????? ???????????????????????? | | ??????# ??# ??????????????????????? | | ?????# ?# ?????????????????????? | | ??????# ## ?????????????????????? | | # ###### ??????# # ????????????????????? | | # #?????????????## ???????????????????? | | ? #?##???????#### ????????????????????? | | ? #? ###????# ?????????????????????? | | ? # #?????# ??????????????????????? | | # # #??????? ???????????????????????? | | #???????? BB ????????????????????????? | | ## #?????????? BB;????????????????????????? | | #??# #???????????# ;##??????????????????????? | | #???# ##???????#### ;;#??????????????????????? | | #???# #??????## ## ;#??????????????????????? | | ##### #??????## @#??????????????????????? | | #?????## %#; #??????????????????????? | | ##????# ##;% #??????????????????????? | | ##"## ######## ## ;##??????????????????????? | | ##?## ### ###????????????????????????? | | ###### ## ####???????????????????????? | | ## ## ## #???????????????????????? | | ?# ## ### ##??????????????????????? | | ?# #### #??????????????????????? | | ?# #??????????????????????? | | ?# ] ##??????????????????????? | | ?# #### ##???????????????????????? | | ?# ##?# ##????????????????????????? | | ?## ##??# #?????????????????????????? | | ####???# #?????????????????????????? | | #?###### ##?????????????????????????? | | #### ##??????????????????????????? | | ###?# #???????????????????????????? | | #"#????## ##??????????????????????????? | | # ??????### ###????????????????????????? | | ##????????## #????????????????????????? | | ? ?????????????# #????????????????????????? | | ???????????????## ##???????????????????????? | | ??????????????## #???????????????????????? | | ??????????????# #??????????????????????? | +----------------------------------------------------+ Best States ------------- Heat Dissipation 148 Energy Generation 21 Energy Capacity 325 Matter Stores 300 Matter Capacity 300 Sight Range 16 Robot Scan Range 15 Terrain Scan Density 10 Jamming Range 12 Base Temperature (-) 100 Armor Coverage 450 Weapon Cycling 15 Melee Speed Boost 20 Evasion (%) 41 Targeting Accuracy 8 Recoil Reduction 4 Offensive Hacking 10 Item Schematics ----------------- Lgt. Regenerative Plating | -7/Data Miner | Free Cld. Cesium-ion Thruster | -7/Data Miner | Free Combat Drone Bay | -7/Data Miner | Free Force Rifle | -7/Data Miner | Free Gravity Neutralizer | -7/Data Miner | Free Thunder Leg | -7/Data Miner | Free Adv. Recoil Stabilizer | -7/Data Miner | Free KE Penetrator | -7/Data Miner | Free Thermic Laser | -7/Data Miner | Free Imp. Linear Gravjet | -7/Data Miner | Free Field Propulsion Array | -7/Data Miner | Free Robot Schematics ------------------ G-50 Soldier | -7/Data Miner | Free S-27 Virus | -7/Data Miner | Free H-66 Slayer | -7/Data Miner | Free Y-54 Guardian | -7/Data Miner | Free B-48 Gladiator | -7/Data Miner | Free A-15 Conveyor | -7/Data Miner | Free Fabricated ------------ B-48 Gladiator | x3 | -7/Factory | Preloaded Repaired ---------- Lgt. Treads | 42% | -10/Materials Lgt. Treads | 18% | -9/Materials Lgt. Treads | 33% | -9/Materials Shotgun | 13% | -9/Materials Arm. Wheel | 23% | -8/Materials Arm. Wheel | 52% | -8/Materials Arm. Wheel | 54% | -8/Storage Studied --------- Shotgun | -9/Materials | Hacked Arm. Wheel | -9/Materials | Hacked Alien Tech Used ----------------- None Achievements -------------- None Challenges ------------ None Game ------ Seed ShadingMatterInjector Manual? 0 Play Time 01:36:05 Cumulative 460.3 hours Start 2025.12.16 @ 09:23:23 End 2025.12.17 @ 00:39:05 Sessions 7 Manual Loads 0 Difficulty Rogue Special Mode None Game No. 285 Rogue 285 Adventurer 0 Explorer 0 Win Type - Total 9 Types 6/0/2/0/0/0/0/1/0/0 Lore% 82 Gallery% 82 Achievement% 60 Wizard Run 0 Options --------- Layout 1 ASCII 0 Keyboard 0 Movement Numpad Keybinds 0 Fullscreen 2 Font 24/Smallcaps Map View 50x40 Zoom Use 0% Tactical HUD 1 Map Filters NONE Filters NONE Steam 1 RUN: 32dafb7c-06b3-4f3d-ba3c-97ef0dd1c093